[Event "Late-Titled-Tuesday-Blitz-March-05-2024"]
[Site "Chess.com"]
[Date "2024.03.05"]
[Round "11"]
[White "reevecanada"]
[Black "KNVB"]
[Result "0-1"]
[WhiteElo "2623"]
[BlackElo "2796"]
[TimeControl "180+1"]
[EndTime "16:04:30 PST"]
[Termination "KNVB won by checkmate"]

1. e4 {[%clk 0:03:00.9]} 1... b6 {[%clk 0:03:00.1]} 2. Bc4 {[%clk 0:02:58]} 2...
Bb7 {[%clk 0:03:00.2]} 3. Nc3 {[%clk 0:02:56.9]} 3... e6 {[%clk 0:03:00.6]} 4.
d4 {[%clk 0:02:56.1]} 4... Bb4 {[%clk 0:03:00.4]} 5. f3 {[%clk 0:02:45.1]} 5...
d5 {[%clk 0:02:54.6]} 6. exd5 {[%clk 0:02:39.5]} 6... Bxd5 {[%clk 0:02:51.9]} 7.
Bxd5 {[%clk 0:02:39.5]} 7... Bxc3+ {[%clk 0:02:51.5]} 8. bxc3 {[%clk 0:02:37.9]}
8... Qxd5 {[%clk 0:02:52.4]} 9. Ne2 {[%clk 0:02:37.8]} 9... Nc6 {[%clk
0:02:39.7]} 10. O-O {[%clk 0:02:36.3]} 10... Nf6 {[%clk 0:02:25.4]} 11. Ba3
{[%clk 0:02:34.1]} 11... Na5 {[%clk 0:02:21.3]} 12. Qd3 {[%clk 0:02:23.2]} 12...
Nc4 {[%clk 0:02:15.9]} 13. Nf4 {[%clk 0:02:14.6]} 13... Qc6 {[%clk 0:02:15.8]}
14. Bc1 {[%clk 0:02:05.2]} 14... O-O-O {[%clk 0:02:14.1]} 15. Qe2 {[%clk
0:02:01.8]} 15... Nd5 {[%clk 0:02:06.6]} 16. Nxd5 {[%clk 0:02:00]} 16... exd5
{[%clk 0:01:57.7]} 17. Bf4 {[%clk 0:01:56.1]} 17... Rhe8 {[%clk 0:01:31.8]} 18.
Qd3 {[%clk 0:01:53.8]} 18... Qf6 {[%clk 0:01:13.7]} 19. Bd2 {[%clk 0:01:41.6]}
19... Qg6 {[%clk 0:01:06]} 20. Rf2 {[%clk 0:01:30.1]} 20... Re6 {[%clk
0:00:51.3]} 21. Bf4 {[%clk 0:01:19.2]} 21... Rde8 {[%clk 0:00:49.8]} 22. Raf1
{[%clk 0:00:51.2]} 22... Kb7 {[%clk 0:00:47.9]} 23. h3 {[%clk 0:00:49.6]} 23...
a5 {[%clk 0:00:39.7]} 24. Kh2 {[%clk 0:00:45.6]} 24... Rf6 {[%clk 0:00:23.5]}
25. Bg3 {[%clk 0:00:42.1]} 25... Re3 {[%clk 0:00:18.8]} 26. Qxg6 {[%clk
0:00:39]} 26... Rxg6 {[%clk 0:00:19.3]} 27. Bf4 {[%clk 0:00:37.7]} 27... Rxc3
{[%clk 0:00:19.3]} 28. g4 {[%clk 0:00:37.6]} 28... Re6 {[%clk 0:00:17.1]} 29.
Kg3 {[%clk 0:00:35.1]} 29... Ra3 {[%clk 0:00:13.9]} 30. Ra1 {[%clk 0:00:33.7]}
30... Kc6 {[%clk 0:00:07.4]} 31. h4 {[%clk 0:00:33.6]} 31... b5 {[%clk
0:00:06.4]} 32. h5 {[%clk 0:00:32]} 32... b4 {[%clk 0:00:06.7]} 33. Bg5 {[%clk
0:00:28.4]} 33... Kb5 {[%clk 0:00:05.4]} 34. Bf4 {[%clk 0:00:24]} 34... c6
{[%clk 0:00:05.3]} 35. Kg2 {[%clk 0:00:22]} 35... Rc3 {[%clk 0:00:03.3]} 36. Kg3
{[%clk 0:00:21.1]} 36... Na3 {[%clk 0:00:03]} 37. Rc1 {[%clk 0:00:19.9]} 37...
Ka4 {[%clk 0:00:02.9]} 38. g5 {[%clk 0:00:19.1]} 38... Nb5 {[%clk 0:00:03]} 39.
Be5 {[%clk 0:00:18.5]} 39... f6 {[%clk 0:00:03.1]} 40. h6 {[%clk 0:00:16.2]}
40... fxe5 {[%clk 0:00:03.7]} 41. hxg7 {[%clk 0:00:16.9]} 41... Rg6 {[%clk
0:00:04.4]} 42. Kg4 {[%clk 0:00:13.2]} 42... exd4 {[%clk 0:00:03]} 43. f4 {[%clk
0:00:12]} 43... Rxg7 {[%clk 0:00:03.5]} 44. f5 {[%clk 0:00:12.7]} 44... Nd6
{[%clk 0:00:03.8]} 45. f6 {[%clk 0:00:13]} 45... Rf7 {[%clk 0:00:02.9]} 46. Re1
{[%clk 0:00:11.1]} 46... Re3 {[%clk 0:00:03.2]} 47. Rh1 {[%clk 0:00:10.6]} 47...
Re4+ {[%clk 0:00:02.8]} 48. Kh5 {[%clk 0:00:09.6]} 48... Re5 {[%clk 0:00:03.3]}
49. Kh6 {[%clk 0:00:09.7]} 49... Nf5+ {[%clk 0:00:03.6]} 50. Kh5 {[%clk
0:00:09.5]} 50... Ng3+ {[%clk 0:00:04.4]} 51. Kh6 {[%clk 0:00:09.9]} 51... Nxh1
{[%clk 0:00:05.3]} 52. g6 {[%clk 0:00:10.1]} 52... hxg6 {[%clk 0:00:05.8]} 53.
Kxg6 {[%clk 0:00:10.9]} 53... Rf8 {[%clk 0:00:04.5]} 54. f7 {[%clk 0:00:10.8]}
54... Ng3 {[%clk 0:00:03.7]} 55. Kg7 {[%clk 0:00:10.8]} 55... Rxf7+ {[%clk
0:00:03.7]} 56. Kxf7 {[%clk 0:00:11.7]} 56... Ne4 {[%clk 0:00:04.2]} 57. Rf4
{[%clk 0:00:10.4]} 57... Rf5+ {[%clk 0:00:04.3]} 58. Rxf5 {[%clk 0:00:10.2]}
58... Nd6+ {[%clk 0:00:05.1]} 59. Ke6 {[%clk 0:00:10.4]} 59... Nxf5 {[%clk
0:00:06]} 60. Kxf5 {[%clk 0:00:11.2]} 60... Ka3 {[%clk 0:00:06.6]} 61. Ke5
{[%clk 0:00:11.7]} 61... Kxa2 {[%clk 0:00:07.2]} 62. Kxd4 {[%clk 0:00:12.4]}
62... Kb2 {[%clk 0:00:08]} 63. Kd3 {[%clk 0:00:12.6]} 63... c5 {[%clk
0:00:08.1]} 64. Kd2 {[%clk 0:00:12.3]} 64... c4 {[%clk 0:00:07.4]} 65. Kd1
{[%clk 0:00:12]} 65... a4 {[%clk 0:00:07.1]} 66. Kd2 {[%clk 0:00:12.9]} 66... a3
{[%clk 0:00:07.5]} 67. Kd1 {[%clk 0:00:13.1]} 67... c3 {[%clk 0:00:07.6]} 68.
Ke2 {[%clk 0:00:13.4]} 68... Kxc2 {[%clk 0:00:08.4]} 69. Ke3 {[%clk 0:00:13.9]}
69... b3 {[%clk 0:00:08.9]} 70. Kd4 {[%clk 0:00:14.8]} 70... b2 {[%clk
0:00:09.6]} 71. Kxd5 {[%clk 0:00:15.7]} 71... a2 {[%clk 0:00:10]} 72. Kc5 {[%clk
0:00:16.6]} 72... a1=N {[%clk 0:00:09.8]} 73. Kc6 {[%clk 0:00:17.5]} 73... b1=N
{[%clk 0:00:09.8]} 74. Kc7 {[%clk 0:00:18.4]} 74... Kb2 {[%clk 0:00:10.2]} 75.
Kc8 {[%clk 0:00:19.3]} 75... c2 {[%clk 0:00:11.1]} 76. Kb8 {[%clk 0:00:20.2]}
76... c1=N {[%clk 0:00:11.2]} 77. Ka8 {[%clk 0:00:21.1]} 77... Nd3 {[%clk
0:00:11.5]} 78. Kb8 {[%clk 0:00:22]} 78... Nc3 {[%clk 0:00:12.1]} 79. Ka7 {[%clk
0:00:22.9]} 79... Ne4 {[%clk 0:00:12.7]} 80. Ka8 {[%clk 0:00:23.8]} 80... Kc3
{[%clk 0:00:13.1]} 81. Kb8 {[%clk 0:00:24.7]} 81... Kc4 {[%clk 0:00:14]} 82. Ka8
{[%clk 0:00:25.5]} 82... Kc5 {[%clk 0:00:14.8]} 83. Kb8 {[%clk 0:00:26.4]} 83...
Kb6 {[%clk 0:00:14.3]} 84. Ka8 {[%clk 0:00:27.3]} 84... Nd6 {[%clk 0:00:13.7]}
85. Kb8 {[%clk 0:00:28.2]} 85... Nc2 {[%clk 0:00:14.2]} 86. Ka8 {[%clk
0:00:29.1]} 86... Nd4 {[%clk 0:00:14.7]} 87. Kb8 {[%clk 0:00:30]} 87... Nb2
{[%clk 0:00:14.1]} 88. Ka8 {[%clk 0:00:30.9]} 88... Na4 {[%clk 0:00:14.5]} 89.
Kb8 {[%clk 0:00:31.8]} 89... Nc3 {[%clk 0:00:13.7]} 90. Ka8 {[%clk 0:00:32.7]}
90... Nd5 {[%clk 0:00:08.2]} 91. Kb8 {[%clk 0:00:33.6]} 91... Ka6 {[%clk
0:00:08]} 92. Ka8 {[%clk 0:00:34.5]} 92... Kb5 {[%clk 0:00:06.5]} 93. Kb8 {[%clk
0:00:35.4]} 93... Ka5 {[%clk 0:00:06.9]} 94. Ka8 {[%clk 0:00:23.7]} 94... Ka6
{[%clk 0:00:06.1]} 95. Kb8 {[%clk 0:00:23.9]} 95... Nc6+ {[%clk 0:00:06.7]} 96.
Ka8 {[%clk 0:00:24.8]} 96... Nb6# {[%clk 0:00:07.3]} 0-1

[Event "Late-Titled-Tuesday-Blitz-March-05-2024"]
[Site "Chess.com"]
[Date "2024.03.05"]
[Round "11"]
[White "MusicCityMaster"]
[Black "SnekkerAndersen"]
[Result "0-1"]
[WhiteElo "2522"]
[BlackElo "2708"]
[TimeControl "180+1"]
[EndTime "16:04:40 PST"]
[Termination "SnekkerAndersen won by resignation"]

1. d4 {[%clk 0:03:00.9]} 1... d5 {[%clk 0:02:58.4]} 2. c4 {[%clk 0:03:00.1]}
2... Nf6 {[%clk 0:02:59.1]} 3. cxd5 {[%clk 0:02:59.8]} 3... c6 {[%clk
0:02:56.5]} 4. dxc6 {[%clk 0:02:58.5]} 4... Nxc6 {[%clk 0:02:57.4]} 5. Nf3
{[%clk 0:02:58]} 5... Bg4 {[%clk 0:02:56.7]} 6. e3 {[%clk 0:02:46.4]} 6... e5
{[%clk 0:02:51.8]} 7. Be2 {[%clk 0:02:45]} 7... exd4 {[%clk 0:02:44.2]} 8. Nxd4
{[%clk 0:02:40.3]} 8... Bb4+ {[%clk 0:02:44.6]} 9. Nc3 {[%clk 0:02:38.7]} 9...
Bxe2 {[%clk 0:02:42.3]} 10. Qxe2 {[%clk 0:02:30]} 10... Qc7 {[%clk 0:02:36.5]}
11. Nb5 {[%clk 0:02:16.1]} 11... Qe7 {[%clk 0:02:33.9]} 12. a3 {[%clk
0:02:10.3]} 12... Ba5 {[%clk 0:02:27.5]} 13. O-O {[%clk 0:01:55.9]} 13... O-O
{[%clk 0:02:26.8]} 14. b4 {[%clk 0:01:53.4]} 14... Bb6 {[%clk 0:02:26.7]} 15.
Bb2 {[%clk 0:01:37]} 15... a6 {[%clk 0:02:26.1]} 16. Na4 {[%clk 0:01:36.9]}
16... Bd8 {[%clk 0:02:02.9]} 17. Nd4 {[%clk 0:01:32]} 17... Nxd4 {[%clk
0:01:52.8]} 18. Bxd4 {[%clk 0:01:31.6]} 18... Re8 {[%clk 0:01:52.8]} 19. Rac1
{[%clk 0:01:21.8]} 19... Qd7 {[%clk 0:01:52]} 20. Qc2 {[%clk 0:01:09.3]} 20...
Ng4 {[%clk 0:01:44.6]} 21. h3 {[%clk 0:01:01.1]} 21... Nh6 {[%clk 0:01:43.3]}
22. Rfd1 {[%clk 0:00:55.8]} 22... Qb5 {[%clk 0:01:32.6]} 23. Nc3 {[%clk
0:00:52]} 23... Qg5 {[%clk 0:01:30.1]} 24. Ne4 {[%clk 0:00:46.1]} 24... Qg6
{[%clk 0:01:30.2]} 25. Nc5 {[%clk 0:00:43.6]} 25... Qc6 {[%clk 0:01:28.4]} 26.
Nb3 {[%clk 0:00:34]} 26... Qb5 {[%clk 0:01:25.3]} 27. e4 {[%clk 0:00:30.7]}
27... Bg5 {[%clk 0:01:23.9]} 28. Rb1 {[%clk 0:00:27.8]} 28... Rac8 {[%clk
0:01:24.5]} 29. Qd3 {[%clk 0:00:26.9]} 29... Qxd3 {[%clk 0:01:15.6]} 30. Rxd3
{[%clk 0:00:27.2]} 30... Rxe4 {[%clk 0:01:16.2]} 31. Bc5 {[%clk 0:00:24.9]}
31... Ree8 {[%clk 0:01:06.7]} 32. Rbd1 {[%clk 0:00:23.6]} 32... Bf6 {[%clk
0:01:02.2]} 33. Rd7 {[%clk 0:00:22.3]} 33... b5 {[%clk 0:01:02.7]} 34. Ra7
{[%clk 0:00:20.1]} 34... Ra8 {[%clk 0:01:03.1]} 35. Rxa8 {[%clk 0:00:18.9]}
35... Rxa8 {[%clk 0:01:02.3]} 36. Rd7 {[%clk 0:00:19.5]} 36... Bb2 {[%clk
0:01:02.4]} 37. Na5 {[%clk 0:00:15.8]} 37... Bxa3 {[%clk 0:01:01.2]} 38. Nc6
{[%clk 0:00:16.5]} 38... g6 {[%clk 0:00:48.1]} 39. Bd4 {[%clk 0:00:15.4]} 39...
Nf5 {[%clk 0:00:47.2]} 40. Be5 {[%clk 0:00:15.2]} 40... h5 {[%clk 0:00:41.2]}
41. g4 {[%clk 0:00:15]} 41... hxg4 {[%clk 0:00:40.3]} 42. hxg4 {[%clk
0:00:15.9]} 42... Nh4 {[%clk 0:00:40.4]} 43. Ne7+ {[%clk 0:00:15]} 43... Kf8
{[%clk 0:00:38.7]} 44. Bf6 {[%clk 0:00:15.3]} 44... Ke8 {[%clk 0:00:33.8]} 45.
Rb7 {[%clk 0:00:15.2]} 45... Nf3+ {[%clk 0:00:33]} 46. Kg2 {[%clk 0:00:15.4]}
46... Nd2 {[%clk 0:00:33.4]} 47. Nd5 {[%clk 0:00:14.2]} 47... Kf8 {[%clk
0:00:29.2]} 48. Bg5 {[%clk 0:00:13.3]} 48... Ne4 {[%clk 0:00:22.3]} 49. Bh6+
{[%clk 0:00:13.7]} 49... Kg8 {[%clk 0:00:21.6]} 50. f3 {[%clk 0:00:14.2]} 50...
Nd6 {[%clk 0:00:21.4]} 51. Nf6+ {[%clk 0:00:14.1]} 51... Kh8 {[%clk 0:00:21.1]}
52. Rd7 {[%clk 0:00:14.8]} 52... Bxb4 {[%clk 0:00:21.4]} 53. g5 {[%clk
0:00:09.2]} 53... a5 {[%clk 0:00:21.8]} 54. Kg3 {[%clk 0:00:07.1]} 54... a4
{[%clk 0:00:19.8]} 55. Kf4 {[%clk 0:00:04.4]} 55... a3 {[%clk 0:00:18.8]} 56.
Ne4 {[%clk 0:00:05.3]} 56... a2 {[%clk 0:00:18.1]} 57. Nxd6 {[%clk 0:00:04.6]}
57... Bxd6+ {[%clk 0:00:15.5]} 58. Rxd6 {[%clk 0:00:03.8]} 58... a1=Q {[%clk
0:00:16.1]} 59. Rf6 {[%clk 0:00:03.9]} 59... Qxf6+ {[%clk 0:00:14.8]} 60. gxf6
{[%clk 0:00:03.3]} 60... Ra4+ {[%clk 0:00:15.4]} 61. Ke3 {[%clk 0:00:02.8]}
61... Kg8 {[%clk 0:00:16]} 62. Bf4 {[%clk 0:00:02.7]} 62... Rc4 {[%clk
0:00:15.9]} 63. Be5 {[%clk 0:00:02.9]} 63... Rc6 {[%clk 0:00:16.4]} 64. Kd4
{[%clk 0:00:03]} 64... Kf8 {[%clk 0:00:17]} 65. Kd5 {[%clk 0:00:03.3]} 65... Re6
{[%clk 0:00:17.2]} 66. f4 {[%clk 0:00:03.8]} 66... Ke8 {[%clk 0:00:17.2]} 67.
Kc5 {[%clk 0:00:04.3]} 67... Kd7 {[%clk 0:00:11.5]} 68. Kxb5 {[%clk 0:00:04.3]}
68... Rxe5+ {[%clk 0:00:12.2]} 69. fxe5 {[%clk 0:00:05.1]} 69... Ke6 {[%clk
0:00:13.1]} 70. Kc5 {[%clk 0:00:04.8]} 70... Kxe5 {[%clk 0:00:13.7]} 71. Kc6
{[%clk 0:00:05.3]} 71... Kxf6 {[%clk 0:00:14.6]} 72. Kd5 {[%clk 0:00:05.9]}
72... Kf5 {[%clk 0:00:14.7]} 73. Kd4 {[%clk 0:00:06.5]} 73... f6 {[%clk
0:00:15.6]} 74. Ke3 {[%clk 0:00:07]} 74... g5 {[%clk 0:00:16.5]} 75. Kf3 {[%clk
0:00:07.6]} 75... Kg6 {[%clk 0:00:17.4]} 76. Kg4 {[%clk 0:00:07.6]} 76... Kf7
{[%clk 0:00:18.3]} 77. Kf5 {[%clk 0:00:07.9]} 77... Kg7 {[%clk 0:00:19.2]} 78.
Kg4 {[%clk 0:00:08.3]} 78... Kg6 {[%clk 0:00:20.1]} 79. Kg3 {[%clk 0:00:08.6]}
79... f5 {[%clk 0:00:21]} 80. Kf3 {[%clk 0:00:09.4]} 80... Kf6 {[%clk
0:00:21.9]} 81. Kg3 {[%clk 0:00:10]} 81... f4+ {[%clk 0:00:22.2]} 82. Kf3 {[%clk
0:00:10.9]} 82... Kf5 {[%clk 0:00:22.6]} 83. Kg2 {[%clk 0:00:11.2]} 83... g4
{[%clk 0:00:23.5]} 84. Kf2 {[%clk 0:00:11.9]} 84... f3 {[%clk 0:00:24]} 85. Kg3
{[%clk 0:00:12.3]} 85... Kg5 {[%clk 0:00:24.7]} 86. Kh2 {[%clk 0:00:12.7]} 86...
Kf4 {[%clk 0:00:25.1]} 87. Kh1 {[%clk 0:00:13.1]} 87... Ke3 {[%clk 0:00:21.7]}
88. Kg1 {[%clk 0:00:13.2]} 88... f2+ {[%clk 0:00:22]} 89. Kh2 {[%clk 0:00:13.3]}
89... f1=Q {[%clk 0:00:20.9]} 90. Kg3 {[%clk 0:00:13.3]} 90... Qf3+ {[%clk
0:00:20.9]} 91. Kh4 {[%clk 0:00:13.4]} 91... g3 {[%clk 0:00:20.5]} 92. Kh3
{[%clk 0:00:13.9]} 92... Kf4 {[%clk 0:00:18.3]} 93. Kh4 {[%clk 0:00:13.3]} 93...
Qg2 {[%clk 0:00:18.6]} 94. Kh5 {[%clk 0:00:13.1]} 94... Qh2+ {[%clk 0:00:19.1]}
95. Kg6 {[%clk 0:00:13.1]} 95... Ke4 {[%clk 0:00:19.3]} 0-1

[Event "Late-Titled-Tuesday-Blitz-March-05-2024"]
[Site "Chess.com"]
[Date "2024.03.05"]
[Round "11"]
[White "SpeedofLight0"]
[Black "Polish_fighter3000"]
[Result "1/2-1/2"]
[WhiteElo "3101"]
[BlackElo "3122"]
[TimeControl "180+1"]
[EndTime "16:05:02 PST"]
[Termination "Game drawn by stalemate"]

1. d4 {[%clk 0:03:00.9]} 1... Nf6 {[%clk 0:02:59.8]} 2. Nc3 {[%clk 0:03:00.6]}
2... d5 {[%clk 0:02:58.9]} 3. Bf4 {[%clk 0:03:00.9]} 3... a6 {[%clk 0:02:55.8]}
4. e3 {[%clk 0:03:00.5]} 4... e6 {[%clk 0:02:54.5]} 5. Nf3 {[%clk 0:03:00.6]}
5... c5 {[%clk 0:02:53.2]} 6. Bd3 {[%clk 0:03:00.1]} 6... Nc6 {[%clk 0:02:53]}
7. O-O {[%clk 0:02:59]} 7... b5 {[%clk 0:02:45.4]} 8. Bg5 {[%clk 0:02:52.2]}
8... Bb7 {[%clk 0:02:42.2]} 9. dxc5 {[%clk 0:02:50.3]} 9... Bxc5 {[%clk
0:02:43.1]} 10. e4 {[%clk 0:02:50.7]} 10... dxe4 {[%clk 0:02:17.2]} 11. Nxe4
{[%clk 0:02:51.6]} 11... Be7 {[%clk 0:02:17.5]} 12. Bxf6 {[%clk 0:02:45]} 12...
gxf6 {[%clk 0:02:15.5]} 13. Ng3 {[%clk 0:02:41]} 13... h5 {[%clk 0:02:14.8]} 14.
Be4 {[%clk 0:02:30]} 14... Qc7 {[%clk 0:02:11.4]} 15. Nh4 {[%clk 0:02:16.5]}
15... f5 {[%clk 0:02:06.3]} 16. Nhxf5 {[%clk 0:02:16.4]} 16... exf5 {[%clk
0:02:06.1]} 17. Nxf5 {[%clk 0:02:17.3]} 17... Rd8 {[%clk 0:01:55.7]} 18. Qf3
{[%clk 0:02:12.2]} 18... Bf6 {[%clk 0:01:50.5]} 19. Rfe1 {[%clk 0:02:03.6]}
19... Kf8 {[%clk 0:01:39]} 20. Rad1 {[%clk 0:01:38.4]} 20... Rxd1 {[%clk
0:01:18.7]} 21. Rxd1 {[%clk 0:01:39.3]} 21... Ne5 {[%clk 0:01:11.7]} 22. Qa3+
{[%clk 0:01:34.9]} 22... Kg8 {[%clk 0:01:12.1]} 23. Bxb7 {[%clk 0:00:31.5]}
23... Qxb7 {[%clk 0:01:13]} 24. Qd6 {[%clk 0:00:30.2]} 24... Nf3+ {[%clk
0:00:19.2]} 25. gxf3 {[%clk 0:00:25.1]} 25... Qxf3 {[%clk 0:00:20.1]} 26. Qg3+
{[%clk 0:00:15]} 26... Qxg3+ {[%clk 0:00:20]} 27. hxg3 {[%clk 0:00:15.9]} 27...
Bxb2 {[%clk 0:00:20.3]} 28. Rd6 {[%clk 0:00:15.4]} 28... a5 {[%clk 0:00:18.9]}
29. Rd5 {[%clk 0:00:15.4]} 29... b4 {[%clk 0:00:18.9]} 30. Rxa5 {[%clk
0:00:15.4]} 30... Kh7 {[%clk 0:00:18.8]} 31. Ne3 {[%clk 0:00:13.2]} 31... Kg6
{[%clk 0:00:16.4]} 32. Nd5 {[%clk 0:00:12.9]} 32... h4 {[%clk 0:00:16.7]} 33.
Nxb4 {[%clk 0:00:11.1]} 33... hxg3 {[%clk 0:00:16.8]} 34. fxg3 {[%clk 0:00:12]}
34... Bc3 {[%clk 0:00:12.5]} 35. Rb5 {[%clk 0:00:11.5]} 35... Ra8 {[%clk
0:00:11.6]} 36. Nd5 {[%clk 0:00:06.3]} 36... Bd4+ {[%clk 0:00:11.5]} 37. Kf1
{[%clk 0:00:03.9]} 37... Rxa2 {[%clk 0:00:12.4]} 38. c3 {[%clk 0:00:02.9]} 38...
Be5 {[%clk 0:00:12.6]} 39. Nf4+ {[%clk 0:00:02.8]} 39... Kf6 {[%clk 0:00:12.8]}
40. Ne2 {[%clk 0:00:02.3]} 40... Kf5 {[%clk 0:00:10.3]} 41. Rb4 {[%clk
0:00:01.8]} 41... Rc2 {[%clk 0:00:09.4]} 42. g4+ {[%clk 0:00:02.4]} 42... Kg5
{[%clk 0:00:07.7]} 43. Re4 {[%clk 0:00:03.3]} 43... f6 {[%clk 0:00:07.4]} 44. c4
{[%clk 0:00:03.3]} 44... Ra2 {[%clk 0:00:05.2]} 45. Kf2 {[%clk 0:00:03.7]} 45...
Ra3 {[%clk 0:00:04.5]} 46. Ng1 {[%clk 0:00:02.7]} 46... Bg3+ {[%clk 0:00:04.1]}
47. Kg2 {[%clk 0:00:03]} 47... Bd6 {[%clk 0:00:03.8]} 48. Nf3+ {[%clk
0:00:03.4]} 48... Kg6 {[%clk 0:00:04.3]} 49. Re6 {[%clk 0:00:03.6]} 49... Bf4
{[%clk 0:00:04.2]} 50. c5 {[%clk 0:00:03.7]} 50... Ra2+ {[%clk 0:00:04.4]} 51.
Kf1 {[%clk 0:00:04]} 51... Rc2 {[%clk 0:00:04.4]} 52. c6 {[%clk 0:00:04.5]}
52... Kf7 {[%clk 0:00:02.8]} 53. Re4 {[%clk 0:00:04.3]} 53... Bd6 {[%clk
0:00:03.1]} 54. Nd4 {[%clk 0:00:04.3]} 54... Rc5 {[%clk 0:00:03.4]} 55. Ke2
{[%clk 0:00:04.5]} 55... Be5 {[%clk 0:00:03.3]} 56. Nf3 {[%clk 0:00:04.2]} 56...
Ke6 {[%clk 0:00:03.4]} 57. Kd3 {[%clk 0:00:04]} 57... Kd5 {[%clk 0:00:02.8]} 58.
Nxe5 {[%clk 0:00:03.2]} 58... fxe5 {[%clk 0:00:03.7]} 59. g5 {[%clk 0:00:02.8]}
59... Rxc6 {[%clk 0:00:04.2]} 60. Rg4 {[%clk 0:00:03.5]} 60... Rg6 {[%clk
0:00:04.4]} 61. Ke3 {[%clk 0:00:04]} 61... Rg7 {[%clk 0:00:03.7]} 62. Rg1 {[%clk
0:00:03.1]} 62... Rg6 {[%clk 0:00:03.2]} 63. Kf3 {[%clk 0:00:03.5]} 63... Ke6
{[%clk 0:00:03]} 64. Kg4 {[%clk 0:00:04.1]} 64... Kf7 {[%clk 0:00:02.9]} 65. Kf5
{[%clk 0:00:04.7]} 65... Ra6 {[%clk 0:00:02.9]} 66. Rc1 {[%clk 0:00:04.5]} 66...
Ra8 {[%clk 0:00:02.9]} 67. Rc5 {[%clk 0:00:04.6]} 67... Kg8 {[%clk 0:00:03.3]}
68. Rxe5 {[%clk 0:00:05.2]} 68... Rf8+ {[%clk 0:00:03.6]} 69. Kg6 {[%clk
0:00:05.6]} 69... Ra8 {[%clk 0:00:04.3]} 70. Re6 {[%clk 0:00:05.6]} 70... Rb8
{[%clk 0:00:04.7]} 71. Kh6 {[%clk 0:00:06.2]} 71... Ra8 {[%clk 0:00:05.3]} 72.
g6 {[%clk 0:00:06.8]} 72... Rb8 {[%clk 0:00:05.9]} 73. Re7 {[%clk 0:00:07.4]}
73... Ra8 {[%clk 0:00:06]} 74. Rf7 {[%clk 0:00:07.8]} 74... Rb8 {[%clk
0:00:06.1]} 75. Rh7 {[%clk 0:00:08.4]} 75... Ra8 {[%clk 0:00:06.2]} 76. Rg7+
{[%clk 0:00:09]} 76... Kh8 {[%clk 0:00:05.7]} 77. Rh7+ {[%clk 0:00:09.7]} 77...
Kg8 {[%clk 0:00:05.8]} 78. Rf7 {[%clk 0:00:10.6]} 78... Rb8 {[%clk 0:00:05.4]}
79. Rf6 {[%clk 0:00:10.8]} 79... Ra8 {[%clk 0:00:05.7]} 80. Kg5 {[%clk
0:00:10.8]} 80... Ra5+ {[%clk 0:00:05.6]} 81. Rf5 {[%clk 0:00:11.7]} 81... Ra8
{[%clk 0:00:06]} 82. Kf6 {[%clk 0:00:11.8]} 82... Rf8+ {[%clk 0:00:06]} 83. Kg5
{[%clk 0:00:12.3]} 83... Ra8 {[%clk 0:00:06.7]} 84. Re5 {[%clk 0:00:12.9]} 84...
Rb8 {[%clk 0:00:07]} 85. Kf5 {[%clk 0:00:13.4]} 85... Ra8 {[%clk 0:00:07.5]} 86.
Re6 {[%clk 0:00:13.9]} 86... Rf8+ {[%clk 0:00:07.6]} 87. Kg5 {[%clk 0:00:14.3]}
87... Ra8 {[%clk 0:00:08.4]} 88. Kh6 {[%clk 0:00:14.7]} 88... Rb8 {[%clk
0:00:08.8]} 89. g7 {[%clk 0:00:14.9]} 89... Ra8 {[%clk 0:00:08.9]} 90. Rf6
{[%clk 0:00:15.3]} 90... Rb8 {[%clk 0:00:09]} 91. Kg6 {[%clk 0:00:15.8]} 91...
Rb6 {[%clk 0:00:08.1]} 92. Kg5 {[%clk 0:00:09]} 92... Rb5+ {[%clk 0:00:08]} 93.
Kg6 {[%clk 0:00:09.1]} 93... Rb6 {[%clk 0:00:07.9]} 94. Kg5 {[%clk 0:00:07.8]}
94... Rb7 {[%clk 0:00:06.3]} 95. Kh6 {[%clk 0:00:04.7]} 95... Rxg7 {[%clk
0:00:06.2]} 96. Rg6 {[%clk 0:00:05]} 96... Kh8 {[%clk 0:00:05.5]} 97. Rxg7
{[%clk 0:00:03.8]} 1/2-1/2